bitfinex-derivatives/quotes_BTCF0:USTF0_20250602
["timestamp","ask_amount","ask_price","bid_price","bid_amount"]
[1748830058613,1.78288695,105360.0,105350.0,0.57212193]
[1748830059123,1.81288695,105360.0,105350.0,0.57212193]
[1748830059517,1.81288695,105360.0,105350.0,0.57224193]
[1748830060511,1.69753276,105360.0,105350.0,0.57224193]
[1748830060706,1.81308695,105360.0,105350.0,0.57224193]
[1748830062222,1.81308695,105360.0,105350.0,0.61490638]
[1748830062722,1.81308695,105360.0,105350.0,0.57224193]
[1748830062922,1.81308695,105360.0,105350.0,0.61490583]
[1748830064820,1.91308695,105360.0,105350.0,0.61490583]
[1748830065022,1.91308695,105360.0,105350.0,0.57224193]
[1748830066225,1.91308695,105360.0,105350.0,0.61490149]
[1748830067728,1.91308695,105360.0,105350.0,0.61478149]
[1748830067928,1.91308695,105360.0,105350.0,0.61490149]
[1748830069121,2.37501085,105360.0,105350.0,0.02299198]
[1748830069328,2.37501085,105360.0,105350.0,0.02311198]
[1748830071937,1.65341085,105360.0,105350.0,0.02311198]
[1748830072132,2.37501085,105360.0,105350.0,0.02299198]
[1748830072731,2.49290399,105360.0,105350.0,0.02299198]
[1748830072936,2.49290399,105360.0,105350.0,0.02311198]
[1748830074633,2.39798799,105360.0,105350.0,0.02311198]
[1748830076541,2.49290399,105360.0,105350.0,0.02311198]
[1748830080643,2.39798799,105360.0,105350.0,0.02311198]
[1748830081138,2.39803873,105360.0,105350.0,0.02311198]
[1748830082043,2.39667873,105360.0,105350.0,0.02311198]
[1748830082245,2.39675873,105360.0,105350.0,0.02311198]
[1748830083349,2.39675873,105360.0,105350.0,0.21286968]
[1748830083350,1.95703873,105360.0,105350.0,0.21286968]
[1748830083644,2.39651873,105360.0,105350.0,0.02311198]
[1748830083846,2.39663873,105360.0,105350.0,0.02311198]
[1748830085142,2.39664011,105360.0,105350.0,0.02299198]
[1748830085344,2.39664011,105360.0,105350.0,0.02311198]
[1748830087246,2.39664011,105360.0,105350.0,0.02299198]
[1748830087441,2.39664011,105360.0,105350.0,0.02311198]
[1748830088540,2.16587961,105360.0,105350.0,0.02311198]
[1748830088946,2.39664011,105360.0,105350.0,0.02311198]
[1748830089145,2.54432024,105360.0,105350.0,0.02299198]
[1748830089353,2.54432024,105360.0,105350.0,0.02311198]
[1748830090443,2.39664011,105360.0,105350.0,0.02311198]
[1748830091549,2.54432024,105360.0,105350.0,0.02311198]
[1748830092248,2.39664011,105360.0,105350.0,0.02311198]
[1748830092643,2.54432024,105360.0,105350.0,0.02311198]
[1748830093741,2.39664011,105360.0,105350.0,0.02311198]
[1748830093940,2.05195611,105360.0,105350.0,0.02311198]
[1748830094146,2.49151611,105360.0,105350.0,0.02311198]
[1748830094550,2.5213031,105360.0,105350.0,0.02311198]
[1748830094850,2.72805529,105360.0,105350.0,0.02311198]
[1748830095945,2.58037516,105360.0,105350.0,0.02311198]
[1748830096746,2.58037516,105360.0,105350.0,0.02299198]
[1748830096948,2.58037516,105360.0,105350.0,0.02311198]
[1748830097145,2.58037516,105360.0,105350.0,8e-08]
[1748830097345,0.1897577,105350.0,105340.0,0.01553107]
[1748830097549,2.42176287,105350.0,105340.0,0.01553107]
[1748830097951,2.30411624,105350.0,105340.0,0.01565107]
[1748830098849,2.40411624,105350.0,105340.0,0.01565107]
[1748830099356,2.61642449,105350.0,105340.0,0.01565107]
[1748830099955,2.61842449,105350.0,105340.0,0.01565107]
[1748830100346,2.50304424,105350.0,105340.0,0.01565107]
[1748830101655,2.55123847,105350.0,105340.0,0.01565107]
[1748830102654,2.55123847,105350.0,105340.0,0.01553107]
[1748830102857,2.55123847,105350.0,105340.0,0.01565107]
[1748830103356,3.09395847,105350.0,105340.0,0.01565107]
[1748830105143,3.20938466,105350.0,105340.0,0.01565107]
[1748830106260,3.26907856,105350.0,105340.0,0.01565107]
[1748830107561,3.17415056,105350.0,105340.0,0.01565107]
[1748830108257,3.11437606,105350.0,105340.0,0.01565107]
[1748830109353,3.32470728,105350.0,105340.0,0.01565107]
[1748830109657,3.17772959,105350.0,105340.0,0.01565107]
[1748830109859,3.38448178,105350.0,105340.0,0.01565107]
[1748830110353,3.38448178,105350.0,105340.0,0.00220848]
[1748830110555,0.1897757,105340.0,105330.0,0.0317]
[1748830110754,0.1897757,105340.0,105320.0,0.09279152]
[1748830110755,0.20430501,105330.0,105320.0,0.09279152]
[1748830110958,1.74517145,105330.0,105320.0,0.09279152]
[1748830111260,1.77671756,105330.0,105320.0,0.09279152]
[1748830111461,1.77671756,105330.0,105320.0,0.09291152]
[1748830111959,1.74729605,105330.0,105320.0,0.09391152]
[1748830112152,1.66131434,105330.0,105320.0,0.09391152]
[1748830112350,2.00964852,105330.0,105320.0,0.09391152]
[1748830112558,1.77671756,105330.0,105320.0,0.09391152]
[1748830112758,1.77671756,105330.0,105320.0,0.09491152]
[1748830113065,1.61436501,105330.0,105320.0,0.09491152]
[1748830113265,1.87671756,105330.0,105320.0,0.09491152]
[1748830113453,1.87671756,105330.0,105320.0,0.09391152]
[1748830113758,1.87671756,105330.0,105320.0,0.09865152]
[1748830114268,1.44856078,105330.0,105320.0,0.03806]
[1748830114459,1.44856078,105330.0,105320.0,0.07016]
[1748830114460,1.87755756,105330.0,105320.0,0.07016]
[1748830114668,1.87755756,105330.0,105320.0,0.10096]
[1748830114964,1.99296078,105330.0,105320.0,0.10096]
[1748830116255,2.11044327,105330.0,105320.0,0.10096]
[1748830116461,1.96349394,105330.0,105320.0,0.10096]
[1748830118056,1.7326875,105330.0,105320.0,0.10096]
[1748830118257,1.96349394,105330.0,105320.0,0.10096]
[1748830118461,1.84809072,105330.0,105320.0,0.10096]
[1748830119161,1.84769072,105330.0,105320.0,0.10096]
[1748830119764,1.81731072,105330.0,105320.0,0.10096]
[1748830120159,1.27351072,105330.0,105320.0,0.10096]
[1748830120360,1.81747072,105330.0,105320.0,0.10096]
[1748830121265,1.84947072,105330.0,105320.0,0.10096]
[1748830121456,1.96487394,105330.0,105320.0,0.10096]
[1748830121767,1.96487394,105330.0,105320.0,0.10084]
[1748830122066,1.96487394,105330.0,105320.0,0.07016]
[1748830122261,1.96487394,105330.0,105310.0,0.00208907]
[1748830122262,0.1898118,105320.0,105310.0,0.00208907]
[1748830122453,1.46017142,105320.0,105310.0,0.00208907]
[1748830122658,1.73643357,105320.0,105310.0,0.09848907]
[1748830122856,1.73643357,105320.0,105310.0,0.09860907]
[1748830123554,1.83643357,105320.0,105310.0,0.10260907]
[1748830124157,1.60562713,105320.0,105310.0,0.10260907]
[1748830124364,1.83643357,105320.0,105310.0,0.10260907]
[1748830124555,1.83695357,105320.0,105310.0,0.10260907]
[1748830124960,1.83707357,105320.0,105310.0,0.10260907]
[1748830127173,1.83707357,105320.0,105310.0,0.10248907]
[1748830127471,1.83707357,105320.0,105310.0,0.10260907]
[1748830127772,1.83663357,105320.0,105310.0,0.10260907]
[1748830127972,1.83695357,105320.0,105310.0,0.10260907]
[1748830129974,1.59901051,105320.0,105310.0,0.32243887]
[1748830130660,1.05417051,105320.0,105310.0,0.32243887]
[1748830130866,1.59897051,105320.0,105310.0,0.43784209]
[1748830131169,0.85417051,105320.0,105310.0,0.60784209]
[1748830131373,0.65315549,105320.0,105310.0,0.60784209]
[1748830131570,0.565,105320.0,105310.0,1.11083483]
[1748830131769,0.7546917,105320.0,105310.0,0.99543161]
[1748830131967,0.565,105320.0,105310.0,0.99543161]
[1748830132168,0.7546917,105320.0,105310.0,0.99543161]
[1748830132367,0.6507317,105320.0,105310.0,0.99543161]
[1748830132573,0.6548117,105320.0,105310.0,0.99543161]
[1748830133372,0.6548117,105320.0,105310.0,1.04381078]
[1748830133679,0.6546917,105320.0,105310.0,1.04381078]
[1748830133975,0.6548117,105320.0,105310.0,1.04381078]
[1748830134978,0.6548117,105320.0,105310.0,0.99540421]
[1748830135180,0.1042,105320.0,105310.0,0.99540421]
[1748830135374,0.2940117,105320.0,105310.0,0.95276669]
[1748830135577,0.2940117,105320.0,105310.0,1.03981534]
[1748830136481,0.2940117,105320.0,105310.0,1.10620785]
[1748830138490,0.00012,105320.0,105310.0,1.10620785]
[1748830138679,0.76222758,105330.0,105320.0,0.1898117]
[1748830138680,0.76898349,105330.0,105320.0,0.1898117]
[1748830138877,0.81643549,105330.0,105320.0,0.79142868]
[1748830139081,0.81643549,105330.0,105320.0,2.29142868]
[1748830139281,0.81643549,105330.0,105320.0,2.17605286]
[1748830139883,0.81643549,105330.0,105320.0,2.1760435]
[1748830142396,0.81643549,105330.0,105320.0,2.1334117]
[1748830142590,0.81643549,105330.0,105320.0,2.17603096]
[1748830142900,0.81643549,105330.0,105320.0,2.1334117]
[1748830143400,0.81643549,105330.0,105320.0,2.17602755]
[1748830143596,0.76898349,105330.0,105320.0,2.1334117]
[1748830143790,0.72153239,105330.0,105320.0,2.17602513]
[1748830143996,0.72153239,105330.0,105320.0,2.20752513]
[1748830144204,0.72153239,105330.0,105320.0,2.1649117]
[1748830144401,0.72153239,105330.0,105320.0,2.28028752]
[1748830146697,0.72153239,105330.0,105320.0,0.6649117]
[1748830146892,0.65015239,105330.0,105320.0,0.6649117]
[1748830147103,0.77130788,105330.0,105320.0,0.6649117]
[1748830147305,0.80260788,105330.0,105320.0,0.4649117]
[1748830147507,0.71445239,105330.0,105320.0,0.4649117]
[1748830148206,0.80260788,105330.0,105320.0,0.4649117]
[1748830149091,0.9179837,105330.0,105320.0,0.3698117]
[1748830149402,0.9179837,105330.0,105310.0,0.33473887]
[1748830149403,0.1898118,105320.0,105310.0,0.33473887]
[1748830149594,1.39263168,105320.0,105310.0,0.33461887]
[1748830150200,1.39263168,105320.0,105310.0,0.33473887]
[1748830150400,1.39263168,105320.0,105310.0,0.33461887]
[1748830150601,1.39263168,105320.0,105310.0,0.33473887]
[1748830151509,1.39263168,105320.0,105310.0,0.33673887]
[1748830152006,1.39263168,105320.0,105310.0,0.33873887]
[1748830153709,1.27725586,105320.0,105310.0,0.33873887]
[1748830153899,1.39263168,105320.0,105310.0,0.33873887]
[1748830154100,1.39263168,105320.0,105310.0,0.22793887]
[1748830156015,1.39263168,105320.0,105310.0,0.19603887]
[1748830156811,1.30616762,105320.0,105310.0,0.19603887]
[1748830157512,1.30616762,105320.0,105310.0,0.23868289]
[1748830157711,1.30608762,105320.0,105310.0,0.23868289]
[1748830158007,1.68608762,105320.0,105310.0,0.04885309]
[1748830158199,1.39419168,105320.0,105310.0,0.00608907]
[1748830158401,1.71419168,105320.0,105310.0,0.00620907]
[1748830159002,1.81419168,105320.0,105310.0,0.00620907]
[1748830160513,1.69881586,105320.0,105310.0,0.00620907]
[1748830160708,1.81419168,105320.0,105310.0,0.00620907]
[1748830161812,1.93170701,105320.0,105310.0,0.00620907]
[1748830163909,1.84360295,105320.0,105310.0,0.00620907]
[1748830167619,1.84360295,105320.0,105310.0,0.00608907]
[1748830167823,1.84360295,105320.0,105310.0,0.00408907]
[1748830168022,1.84660295,105320.0,105310.0,0.00220907]
[1748830168321,1.84960295,105320.0,105310.0,0.00320907]
[1748830169619,1.88117646,105320.0,105310.0,0.00320907]
[1748830169937,1.99655228,105320.0,105310.0,0.00320907]
[1748830170522,1.55563228,105320.0,105310.0,0.00320907]
[1748830170823,1.99983228,105320.0,105310.0,0.00320907]
[1748830171917,1.85288295,105320.0,105310.0,0.00320907]
[1748830175226,1.99983228,105320.0,105310.0,0.00320907]
[1748830176614,1.88445646,105320.0,105310.0,0.00320907]
[1748830176819,1.88231695,105320.0,105310.0,0.00320907]
[1748830178925,1.88446293,105320.0,105310.0,0.00320907]
[1748830179129,1.99983875,105320.0,105310.0,0.00320907]
[1748830179326,1.88231695,105320.0,105310.0,0.00320907]
[1748830182131,2.24311695,105320.0,105310.0,0.00320907]
[1748830185539,1.79891695,105320.0,105310.0,0.00320907]
[1748830185736,2.24575695,105320.0,105310.0,0.00320907]
[1748830186132,2.24575695,105320.0,105310.0,0.03530907]
[1748830186335,1.80207695,105320.0,105310.0,0.03530907]
[1748830186538,2.24879695,105320.0,105310.0,0.06720907]
[1748830186831,1.65552113,105320.0,105310.0,0.20988389]
[1748830187038,2.07066762,105320.0,105310.0,0.12570807]
[1748830187237,2.18823461,105320.0,105310.0,0.12570807]
[1748830187439,2.33530394,105320.0,105310.0,0.10840907]
[1748830188032,2.33530394,105320.0,105310.0,0.09840907]
[1748830188338,2.36600394,105320.0,105310.0,0.09840907]
[1748830190738,2.36584394,105320.0,105310.0,0.09840907]
[1748830191044,2.21889461,105320.0,105310.0,0.09840907]
[1748830191838,2.21881461,105320.0,105310.0,0.09840907]
[1748830193239,2.21887292,105320.0,105310.0,0.09840907]
[1748830193733,2.33430705,105320.0,105310.0,0.03530907]
[1748830194138,2.33430705,105320.0,105310.0,0.03518907]
[1748830194339,2.33430705,105320.0,105310.0,0.03530907]
[1748830195243,2.21889388,105320.0,105310.0,0.03530907]
[1748830195749,2.24815622,105320.0,105310.0,0.03530907]
[1748830197950,2.30795908,105320.0,105310.0,0.03530907]
[1748830198145,2.30795908,105320.0,105310.0,0.00320907]
[1748830198743,2.30795908,105320.0,105310.0,0.00308907]
[1748830198943,2.30795908,105320.0,105310.0,0.00320907]
[1748830200653,2.45518238,105320.0,105310.0,0.00320907]
[1748830200849,2.24843019,105320.0,105310.0,0.00320907]
[1748830201155,2.24843019,105320.0,105310.0,0.00308907]
[1748830201344,2.24843019,105320.0,105310.0,0.00320907]
[1748830203742,1.80195019,105320.0,105310.0,0.00320907]
[1748830203948,2.24695019,105320.0,105310.0,0.00320907]
[1748830204759,1.52535019,105320.0,105310.0,0.00320907]
[1748830205054,2.24695019,105320.0,105310.0,0.00320907]
[1748830206048,2.09972689,105320.0,105310.0,0.00320907]
[1748830206556,2.24695019,105320.0,105310.0,0.00320907]
[1748830206955,2.24667019,105320.0,105310.0,0.00320907]
[1748830207146,2.24655019,105320.0,105310.0,0.09800907]
[1748830207748,2.24667019,105320.0,105310.0,0.09800907]
[1748830209052,2.24667019,105320.0,105310.0,0.06780907]
[1748830210048,1.69451019,105320.0,105310.0,0.06780907]
[1748830210248,2.24611019,105320.0,105310.0,0.06780907]
[1748830210553,2.24623019,105320.0,105310.0,0.09880907]
[1748830211959,2.24599019,105320.0,105310.0,0.09880907]
[1748830212254,2.24587019,105320.0,105310.0,0.09880907]
[1748830212853,2.24599019,105320.0,105310.0,0.09880907]
[1748830215358,2.24395019,105320.0,105310.0,0.09880907]
[1748830216157,2.24383019,105320.0,105310.0,0.09880907]
[1748830216358,1.66381019,105320.0,105310.0,0.09880907]
[1748830216558,2.21309019,105320.0,105310.0,0.09880907]
[1748830217161,2.24319019,105320.0,105310.0,0.09880907]
[1748830217860,2.1277351,105320.0,105310.0,0.09880907]
[1748830218167,2.24319019,105320.0,105310.0,0.09880907]
[1748830219662,2.24279019,105320.0,105310.0,0.09880907]
[1748830220360,2.24323019,105320.0,105310.0,0.09880907]
[1748830221459,2.24311019,105320.0,105310.0,0.09880907]
[1748830225267,2.47401011,105320.0,105310.0,0.06780907]
[1748830225460,2.35855844,105320.0,105310.0,0.06780907]
[1748830226057,2.56531063,105320.0,105310.0,0.06780907]
[1748830226457,2.56595063,105320.0,105310.0,0.06780907]
[1748830226659,2.56591063,105320.0,105310.0,0.06780907]
[1748830227260,2.45045185,105320.0,105310.0,0.06780907]
[1748830231466,2.00637185,105320.0,105310.0,0.06780907]
[1748830231771,2.45045185,105320.0,105310.0,0.06780907]
[1748830231968,2.46951342,105320.0,105310.0,0.06780907]
[1748830233171,2.02543342,105320.0,105310.0,0.06780907]
[1748830233371,2.46943342,105320.0,105310.0,0.06780907]
[1748830236176,2.26268123,105320.0,105310.0,0.06780907]
[1748830236868,2.26268123,105320.0,105310.0,0.03600907]
[1748830236869,2.26228123,105320.0,105310.0,0.03600907]
[1748830238775,1.71296123,105320.0,105310.0,0.03600907]
[1748830238972,2.26228123,105320.0,105310.0,0.03600907]
[1748830239170,2.26228123,105320.0,105310.0,0.06620907]
[1748830241478,1.54068123,105320.0,105310.0,0.06620907]
[1748830241778,2.26228123,105320.0,105310.0,0.06620907]
[1748830244182,1.71296123,105320.0,105310.0,0.06620907]
[1748830244378,2.26160123,105320.0,105310.0,0.06620907]
[1748830244680,1.59751667,105320.0,105310.0,0.30136992]
[1748830244871,1.97226804,105320.0,105310.0,0.330096]
[1748830245178,1.88214804,105320.0,105310.0,0.37848653]
[1748830245377,2.20226804,105320.0,105310.0,0.37848653]
[1748830245683,1.97226804,105320.0,105310.0,0.330096]
[1748830246074,1.42358804,105320.0,105310.0,0.28753877]
[1748830246383,1.97158804,105320.0,105310.0,0.28753877]
[1748830248171,1.97138804,105320.0,105310.0,0.28753877]
[1748830249076,1.97138804,105320.0,105310.0,0.09770907]
[1748830249383,1.45428804,105320.0,105310.0,0.09770907]
[1748830249583,1.45428804,105320.0,105310.0,0.28753877]
[1748830250083,2.00188804,105320.0,105310.0,0.28753877]
[1748830251283,2.00188804,105320.0,105310.0,0.09770907]
[1748830251484,2.25188804,105320.0,105310.0,0.09770907]
[1748830253081,1.43428804,105320.0,105310.0,0.28753877]
[1748830253295,1.98186684,105320.0,105310.0,0.28753877]
[1748830254885,1.3039138,105320.0,105310.0,0.6352599]
[1748830255190,1.8513538,105320.0,105310.0,0.6352599]
[1748830255391,1.8514738,105320.0,105310.0,0.6352599]
[1748830256191,1.8513938,105320.0,105310.0,0.6352599]
[1748830257286,1.88217466,105320.0,105310.0,0.51983654]
[1748830257987,1.88217466,105320.0,105310.0,0.51983036]
[1748830258489,1.88189466,105320.0,105310.0,0.51983036]
[1748830261087,1.88189466,105320.0,105310.0,0.51982841]
[1748830262892,1.33469466,105320.0,105310.0,0.51982841]
[1748830263093,1.88141466,105320.0,105310.0,0.51982841]
[1748830263700,1.88141466,105320.0,105310.0,0.47753877]
[1748830265287,1.88141466,105320.0,105310.0,0.28753877]
[1748830267298,1.88141466,105320.0,105310.0,0.25603877]
[1748830267794,1.52061466,105320.0,105310.0,0.25603877]
[1748830269104,1.52061466,105320.0,105310.0,0.29834122]
[1748830270299,1.52061466,105320.0,105310.0,0.25603877]
[1748830270686,1.52061466,105320.0,105310.0,0.00320907]
[1748830270888,1.86061466,105320.0,105310.0,0.00794907]
[1748830271087,1.8902677,105320.0,105310.0,0.00782907]
[1748830271288,1.77231759,105320.0,105310.0,0.00782907]
[1748830271605,1.8902677,105320.0,105310.0,0.00782907]
[1748830271800,1.8902677,105320.0,105310.0,0.00794907]
[1748830272495,1.77486348,105320.0,105310.0,0.00794907]
[1748830272698,1.8902677,105320.0,105310.0,0.00794907]
[1748830273294,1.77486348,105320.0,105310.0,0.00794907]
[1748830273497,1.8902677,105320.0,105310.0,0.00794907]
[1748830273903,2.037491,105320.0,105310.0,0.00794907]
[1748830274093,1.91954089,105320.0,105310.0,0.00794907]
[1748830275705,2.03734162,105320.0,105310.0,0.00794907]
[1748830277096,1.89011832,105320.0,105310.0,0.00794907]
[1748830280197,1.65691337,105320.0,105310.0,0.00782907]
[1748830280395,1.77231759,105320.0,105310.0,0.00794907]
[1748830280595,1.91954089,105320.0,105310.0,0.00794907]
[1748830280798,1.92450089,105320.0,105310.0,0.00794907]
[1748830281199,2.01051672,105320.0,105310.0,0.00794907]
[1748830282309,1.89674282,105320.0,105310.0,0.00794907]
[1748830282713,2.01207672,105320.0,105310.0,0.00794907]
[1748830282905,2.01219672,105320.0,105310.0,0.00794907]
[1748830283204,1.45883672,105320.0,105310.0,0.00794907]
[1748830283413,2.01243672,105320.0,105310.0,0.00794907]
[1748830283593,2.01231672,105320.0,105310.0,0.00794907]
[1748830284100,2.01243672,105320.0,105310.0,0.00794907]
[1748830285303,1.89699011,105320.0,105310.0,0.00782907]
[1748830285511,1.89699011,105320.0,105310.0,0.00794907]
[1748830285695,1.34339011,105320.0,105310.0,0.00794907]
[1748830285895,1.89731011,105320.0,105310.0,0.00794907]
[1748830286610,1.78184892,105320.0,105310.0,0.00794907]
[1748830286811,1.89731011,105320.0,105310.0,0.00794907]
[1748830291821,2.25811011,105320.0,105310.0,0.00794907]
[1748830292408,2.14037456,105320.0,105310.0,0.00794907]
[1748830295711,2.14037456,105320.0,105310.0,0.00782907]
[1748830295909,2.14037456,105320.0,105310.0,0.00794907]
[1748830296314,2.2580625,105320.0,105310.0,0.00794907]
[1748830297421,2.28759786,105320.0,105310.0,0.00794907]
[1748830301313,2.28811786,105320.0,105310.0,0.00794907]
[1748830301518,2.49487005,105320.0,105310.0,0.00794907]
[1748830303121,2.04735005,105320.0,105310.0,0.00794907]
[1748830303319,2.37964886,105320.0,105310.0,0.00794907]
[1748830303521,2.49511005,105320.0,105310.0,0.03894907]
[1748830303723,2.49499005,105320.0,105310.0,0.03894907]
[1748830303922,2.49511005,105320.0,105310.0,0.03894907]
[1748830305522,2.37964886,105320.0,105310.0,0.03894907]
[1748830305727,2.49511005,105320.0,105310.0,0.03894907]
[1748830306428,2.28835786,105320.0,105310.0,0.03894907]
[1748830306631,2.28835786,105320.0,105310.0,0.00782907]
[1748830307016,2.28835786,105320.0,105310.0,0.00794907]
[1748830307422,2.49511005,105320.0,105310.0,0.00794907]
[1748830307826,2.28835786,105320.0,105310.0,0.00794907]
[1748830308532,2.34788675,105320.0,105310.0,0.00794907]
[1748830310120,2.34788675,105320.0,105310.0,0.00782907]
[1748830310722,2.34788675,105320.0,105310.0,0.00794907]
[1748830312936,2.23242556,105320.0,105310.0,0.00794907]
[1748830313234,2.34788675,105320.0,105310.0,0.00794907]
[1748830313423,2.23242556,105320.0,105310.0,0.00794907]
[1748830313630,2.34788675,105320.0,105310.0,0.00794907]
[1748830317626,2.23242556,105320.0,105310.0,0.00794907]
[1748830317820,2.34788675,105320.0,105310.0,0.00794907]
[1748830318840,2.23242556,105320.0,105310.0,0.00794907]
[1748830319024,2.34788675,105320.0,105310.0,0.00794907]
[1748830319840,2.34788675,105320.0,105310.0,0.0033423]
[1748830320338,0.22252565,105310.0,105300.0,0.0667]
[1748830320527,1.32393458,105310.0,105300.0,0.0667]
[1748830320925,1.44181383,105310.0,105300.0,0.0667]
[1748830321132,1.29446609,105310.0,105300.0,0.0667]
[1748830321652,1.29546609,105310.0,105300.0,0.0667]
[1748830322029,1.39546609,105310.0,105300.0,0.0667]
[1748830322337,2.47286609,105310.0,105300.0,0.07144]
[1748830323032,2.47386609,105310.0,105300.0,0.07244]
[1748830323239,2.47387638,105310.0,105300.0,0.07244]
[1748830326536,2.3584049,105310.0,105300.0,0.07244]
[1748830326741,2.92039638,105310.0,105300.0,0.07244]
[1748830326939,2.80251713,105310.0,105300.0,0.07244]
[1748830327244,2.94986487,105310.0,105300.0,0.07244]
[1748830328136,2.50334487,105310.0,105300.0,0.07244]
[1748830328439,2.94982487,105310.0,105300.0,0.07244]
[1748830328941,2.94982487,105310.0,105300.0,0.10264]
[1748830332941,3.05730487,105310.0,105300.0,0.10264]
[1748830334540,3.05718487,105310.0,105300.0,0.10264]
[1748830336140,2.50334487,105310.0,105300.0,0.10264]
[1748830336347,3.05702487,105310.0,105300.0,0.10264]
[1748830336534,2.90967713,105310.0,105300.0,0.10264]
[1748830336741,3.11642932,105310.0,105300.0,0.10264]
[1748830337045,3.11666932,105310.0,105300.0,0.10264]
[1748830337238,3.11654932,105310.0,105300.0,0.10264]
[1748830337438,3.11666932,105310.0,105300.0,0.10264]
[1748830338733,2.6780462,105310.0,105300.0,0.10264]
[1748830338938,2.6453462,105310.0,105300.0,0.10264]
[1748830339138,2.7192062,105310.0,105300.0,0.10264]
[1748830339446,3.1653262,105310.0,105300.0,0.10264]
[1748830342243,3.1958262,105310.0,105300.0,0.10264]
[1748830342846,2.49556932,105310.0,105300.0,0.10264]
[1748830343048,3.01750932,105310.0,105300.0,0.10264]
[1748830343246,3.01738932,105310.0,105300.0,0.10264]
[1748830343549,3.01750932,105310.0,105300.0,0.10264]
[1748830343751,2.46506932,105310.0,105300.0,0.10264]
[1748830343950,3.01742932,105310.0,105300.0,0.10264]
[1748830344250,3.26354301,105310.0,105300.0,0.10264]
[1748830344746,3.26366301,105310.0,105300.0,0.10264]
[1748830345145,3.26366301,105310.0,105300.0,0.2924876]
[1748830345749,3.14819153,105310.0,105300.0,0.10264]
[1748830345949,3.26366301,105310.0,105300.0,0.10264]
[1748830346748,3.05691082,105310.0,105300.0,0.10264]
[1748830346940,2.50455082,105310.0,105300.0,0.10264]
[1748830347140,3.05671082,105310.0,105300.0,0.10264]
[1748830348053,2.38907934,105310.0,105300.0,0.40795908]
[1748830348259,3.02381082,105310.0,105300.0,0.40795908]
[1748830348553,3.02393082,105310.0,105300.0,0.40795908]
[1748830348945,3.02393082,105310.0,105300.0,0.2924876]
[1748830349151,2.64393082,105310.0,105300.0,0.2924876]
[1748830349353,3.10275471,105310.0,105300.0,0.2924876]
[1748830349556,2.98473082,105310.0,105300.0,0.2924876]
[1748830350051,2.83275605,105310.0,105300.0,0.2924876]
[1748830350258,2.83275605,105310.0,105300.0,0.33475777]
[1748830350259,2.68522236,105310.0,105300.0,0.33475777]
[1748830350445,2.98522236,105310.0,105300.0,0.33475777]
[1748830351257,2.98522236,105310.0,105300.0,0.14491017]
[1748830351665,2.09314236,105310.0,105300.0,0.33475787]
[1748830351850,2.97494236,105310.0,105300.0,0.33475787]
[1748830352057,2.99435031,105310.0,105300.0,0.14491017]
[1748830353360,2.87632508,105310.0,105300.0,0.11471017]
[1748830353756,2.58632508,105310.0,105300.0,0.11471017]
[1748830353954,2.70435031,105310.0,105300.0,0.14681017]
[1748830355955,2.58632508,105310.0,105300.0,0.14681017]
[1748830356565,2.70435031,105310.0,105300.0,0.14681017]
[1748830356958,2.66435031,105310.0,105300.0,0.14681017]
[1748830358360,2.67435031,105310.0,105300.0,0.14681017]
[1748830358867,2.12255031,105310.0,105300.0,0.14681017]
[1748830359061,2.67403031,105310.0,105300.0,0.14681017]
[1748830359268,2.67403031,105310.0,105300.0,0.10454]
[1748830360268,2.66403031,105310.0,105300.0,0.10454]
[1748830361569,2.811564,105310.0,105300.0,0.10454]
[1748830361759,2.871564,105310.0,105300.0,0.10454]
[1748830362265,2.811564,105310.0,105300.0,0.10454]
[1748830362661,2.871564,105310.0,105300.0,0.10454]
[1748830363370,2.871564,105310.0,105300.0,0.07244]
[1748830364168,2.510764,105310.0,105300.0,0.07244]
[1748830364367,3.232364,105310.0,105300.0,0.07244]
[1748830365867,3.08483031,105310.0,105300.0,0.2622877]
[1748830366359,3.08483031,105310.0,105300.0,0.07244]
[1748830366758,3.08483031,105310.0,105300.0,0.11469656]
[1748830367969,3.08483031,105310.0,105300.0,0.11469726]
[1748830372363,3.08299031,105310.0,105300.0,0.07244]
[1748830372671,2.96496508,105310.0,105300.0,0.08300133]
[1748830375771,2.52124508,105310.0,105300.0,0.08300133]
[1748830376081,1.88728508,105310.0,105300.0,0.08300133]
[1748830376772,2.00531031,105310.0,105300.0,0.04074]
[1748830377367,2.00531031,105310.0,105300.0,0.08300814]
[1748830377972,1.88983883,105310.0,105300.0,0.08300814]
[1748830378276,2.00531031,105310.0,105300.0,0.08300814]
[1748830379377,1.28371031,105310.0,105300.0,0.08300814]
[1748830379579,1.64451031,105310.0,105300.0,0.08300814]
[1748830380863,1.64451031,105310.0,105300.0,0.12527999]
[1748830381079,1.64451031,105310.0,105300.0,0.08301185]
[1748830381679,1.64451031,105310.0,105300.0,0.04074]
[1748830383176,1.58451031,105310.0,105300.0,0.04074]
[1748830384779,1.46648508,105310.0,105300.0,0.04074]
[1748830386473,1.46636508,105310.0,105300.0,0.04074]
[1748830386681,1.58451607,105310.0,105300.0,0.08300767]
[1748830387083,1.58451607,105310.0,105300.0,0.05300767]
[1748830387084,1.95451607,105310.0,105300.0,0.05300767]
[1748830387377,1.95451607,105310.0,105300.0,0.05312767]
[1748830387585,1.95451607,105310.0,105300.0,0.01086]
[1748830393384,1.58411607,105310.0,105300.0,0.01086]
[1748830393583,1.90164976,105310.0,105300.0,0.01086]
[1748830393774,1.90176976,105310.0,105300.0,0.01086]
[1748830393979,2.08176976,105310.0,105300.0,0.01086]
[1748830394285,1.41465877,105310.0,105300.0,0.01086]
[1748830394483,1.83183761,105310.0,105300.0,0.04326]
[1748830394687,1.83171761,105310.0,105300.0,0.04326]
[1748830394884,1.83183761,105310.0,105300.0,0.04326]
[1748830398190,2.19263761,105310.0,105300.0,0.04326]
[1748830399694,2.44263761,105310.0,105300.0,0.04326]
[1748830402075,2.44263761,105310.0,105300.0,0.15873148]
[1748830402076,2.20103761,105310.0,105300.0,0.15873148]
[1748830402279,2.42103761,105310.0,105300.0,0.15873148]
[1748830402484,2.12115761,105310.0,105300.0,0.15873148]
[1748830402692,2.41115761,105310.0,105300.0,0.15873148]
[1748830402899,2.12115761,105310.0,105300.0,0.04326]
[1748830403194,2.46115761,105310.0,105300.0,0.04326]
[1748830405280,2.46115761,105310.0,105300.0,0.01086]
[1748830408093,2.34297877,105310.0,105300.0,0.01086]
[1748830408292,2.4611812,105310.0,105300.0,0.01086]
[1748830408596,2.31364751,105310.0,105300.0,0.01086]
[1748830409097,2.4611812,105310.0,105300.0,0.01086]
[1748830410298,2.34297877,105310.0,105300.0,0.01086]
[1748830410500,1.56545877,105310.0,105300.0,0.01086]
[1748830410693,1.97269877,105310.0,105300.0,0.01086]
[1748830410899,2.31269877,105310.0,105300.0,0.01086]
[1748830411095,2.31269877,105310.0,105300.0,0.01074]
[1748830411400,1.97269877,105310.0,105300.0,0.01086]
[1748830411593,2.29257877,105310.0,105300.0,0.01086]
[1748830411794,2.29269877,105310.0,105300.0,0.01086]